bitfinex/quotes_BTCUSD_20240723
["timestamp","ask_amount","ask_price","bid_price","bid_amount"]
[1721753560289,0.75697,66140.0,66139.0,0.0643]
[1721753560488,1.060358,66140.0,66139.0,0.0643]
[1721753560790,1.058358,66140.0,66139.0,0.0643]
[1721753561215,0.75597,66140.0,66139.0,0.0653]
[1721753561419,0.002,66141.0,66139.0,0.216496]
[1721753561558,0.002,66141.0,66139.0,0.0653]
[1721753561758,0.0015,66141.0,66139.0,0.0653]
[1721753561969,0.0015,66141.0,66140.0,0.83327]
[1721753562140,0.0015,66141.0,66140.0,1.00323265]
[1721753562339,0.01,66148.0,66142.0,0.151189]
[1721753562649,0.151167,66152.0,66147.0,0.151177]
[1721753562841,0.302344,66150.0,66143.0,0.14701991]
[1721753563046,0.1,66155.0,66147.0,0.302355]
[1721753563250,0.151162,66154.0,66147.0,0.302354]
[1721753563474,0.302306,66158.0,66146.0,0.0655]
[1721753563767,0.01,66148.0,66147.0,0.023]
[1721753564389,0.01,66148.0,66147.0,0.174178]
[1721753564593,0.302314,66157.0,66150.0,0.151171]
[1721753564795,0.302314,66157.0,66148.0,0.30235]
[1721753564796,0.151165,66153.0,66149.0,0.151173]
[1721753564992,0.151158,66156.0,66152.0,0.151166]
[1721753565159,0.151156,66157.0,66152.0,0.151166]
[1721753565359,0.151163,66154.0,66149.0,0.233372]
[1721753565650,0.15116,66155.0,66150.0,0.15117]
[1721753565785,0.302319,66156.0,66150.0,0.0645]
[1721753565786,0.302316,66156.0,66150.0,0.0645]
[1721753566015,0.30232,66155.0,66150.0,0.0645]
[1721753566343,0.151169,66151.0,66150.0,0.0645]
[1721753566542,0.755845,66151.0,66150.0,0.0645]
[1721753566880,0.151187,66143.0,66142.0,0.0781]
[1721753567118,0.01,66156.0,66142.0,0.0781]
[1721753567315,0.151165,66153.0,66146.0,0.30236]
[1721753567596,0.005,66151.0,66150.0,0.001]
[1721753568025,0.005,66151.0,66150.0,0.0828482]
[1721753568175,0.005,66151.0,66150.0,0.001]
[1721753568384,0.005,66151.0,66150.0,0.024]
[1721753568590,0.005,66151.0,66150.0,0.175171]
[1721753568937,0.755845,66151.0,66150.0,0.001]
[1721753569186,0.151176,66148.0,66147.0,0.0616]
[1721753569430,0.151174,66149.0,66147.0,0.0616]
[1721753570068,0.005,66151.0,66149.0,0.151173]
[1721753570240,0.302327,66154.0,66150.0,0.023]
[1721753570405,0.005,66151.0,66150.0,0.151171]
[1721753570775,0.005,66151.0,66150.0,0.453514]
[1721753570979,0.151155,66157.0,66150.0,0.302343]
[1721753571205,0.002794,66156.0,66155.0,0.15116]
[1721753571356,0.1,66158.0,66155.0,0.0639]
[1721753571974,0.302242,66172.0,66155.0,0.0639]
[1721753572117,0.00084,66157.0,66155.0,0.08369331]
[1721753572484,0.00084,66157.0,66156.0,0.151157]
[1721753572788,0.00084,66157.0,66156.0,0.476472]
[1721753572989,0.00084,66157.0,66156.0,1.22812191]
[1721753573193,0.00084,66157.0,66156.0,2.86772191]
[1721753573501,0.00384,66157.0,66156.0,3.01468456]
[1721753573650,0.00784,66157.0,66156.0,3.01468456]
[1721753573834,0.00484,66157.0,66156.0,2.11931456]
[1721753574036,0.00484,66157.0,66156.0,2.52882656]
[1721753574236,0.151094,66184.0,66181.0,0.0619]
[1721753574518,0.1433,66196.0,66181.0,0.0619]
[1721753574519,0.302166,66189.0,66181.0,0.0619]
[1721753574704,0.151085,66188.0,66184.0,0.151093]
[1721753574909,0.151084,66189.0,66185.0,0.151091]
[1721753575121,0.00898393,66199.0,66185.0,0.10568339]
[1721753575259,0.15108,66190.0,66186.0,0.151088]
[1721753575460,0.302124,66198.0,66186.0,0.06308183]
[1721753575662,0.151073,66193.0,66186.0,0.06308183]
[1721753575888,0.151076,66192.0,66188.0,0.151084]
[1721753576092,0.15108,66190.0,66189.0,0.05163478]
[1721753576316,0.302113,66201.0,66181.0,0.07593]
[1721753576520,0.22330333,66200.0,66181.0,0.07593]
[1721753576722,0.0658,66191.0,66173.0,0.1415]
[1721753576917,0.302233,66174.0,66173.0,0.0619]
[1721753577128,0.151116,66174.0,66173.0,0.20886265]
[1721753577339,0.453349,66174.0,66173.0,0.0619]
[1721753577744,0.151111,66177.0,66173.0,0.213018]
[1721753577978,0.14701991,66190.0,66173.0,0.0629]
[1721753578182,0.151111,66177.0,66173.0,0.214018]
[1721753578406,0.14701991,66190.0,66173.0,0.0629]
[1721753578573,0.453349,66174.0,66173.0,0.0629]
[1721753578786,0.151116,66174.0,66173.0,0.0629]
[1721753579097,0.453349,66174.0,66173.0,0.0629]
[1721753579389,0.755582,66174.0,66173.0,0.001]
[1721753579950,0.453376,66170.0,66169.0,0.295]
[1721753580218,0.151123,66171.0,66169.0,0.295]
[1721753580369,0.151116,66175.0,66173.0,0.004]
[1721753580569,0.151116,66174.0,66173.0,0.004]
[1721753580768,0.302214,66179.0,66173.0,0.004]
[1721753580950,0.302214,66179.0,66166.0,0.777766]
[1721753580951,0.151124,66171.0,66166.0,0.777766]
[1721753581155,0.007,66170.0,66169.0,0.001]
[1721753581757,0.151124,66171.0,66167.0,0.32115091]
[1721753582075,0.591349,66174.0,66173.0,0.001]
[1721753582308,0.73836891,66174.0,66173.0,0.001]
[1721753582505,1.8209048,66174.0,66173.0,0.001]
[1721753582685,2.02673104,66174.0,66173.0,0.001]
[1721753583092,2.32896404,66174.0,66173.0,0.001]
[1721753583541,0.755777,66157.0,66156.0,0.2191]
[1721753583736,0.453466,66157.0,66156.0,0.2191]
[1721753584231,0.754777,66157.0,66156.0,0.2191]
[1721753584564,0.452466,66157.0,66156.0,0.2191]
[1721753584737,0.464466,66157.0,66156.0,0.2191]
[1721753584966,0.012,66157.0,66156.0,0.3228267]
[1721753585164,0.012,66157.0,66156.0,0.64500361]
[1721753585566,0.024,66157.0,66156.0,0.94731861]
[1721753585768,0.024,66157.0,66156.0,1.32973361]
[1721753585966,0.024,66157.0,66156.0,1.39093361]
[1721753586168,0.024,66157.0,66156.0,0.56720361]
[1721753586352,0.024,66157.0,66156.0,0.46347691]
[1721753586547,0.163155,66157.0,66156.0,0.1413]
[1721753586753,0.465466,66157.0,66156.0,0.1413]
[1721753586952,0.453466,66157.0,66156.0,0.1413]
[1721753587190,0.755777,66157.0,66156.0,0.0612]
[1721753587383,0.777777,66157.0,66156.0,0.002]
[1721753587752,0.766777,66157.0,66156.0,0.001]
[1721753587977,0.755787,66156.0,66155.0,0.372]
[1721753588352,0.008,66157.0,66155.0,0.372]
[1721753588555,0.151157,66156.0,66155.0,0.372]
[1721753588971,0.151157,66156.0,66155.0,0.4607606]
[1721753589172,0.161157,66156.0,66155.0,0.4617606]
[1721753589374,0.01,66156.0,66155.0,0.373]
[1721753589776,0.463472,66156.0,66155.0,0.373]
[1721753589982,0.161157,66156.0,66155.0,0.373]
[1721753590371,0.765787,66156.0,66155.0,0.373]
[1721753590731,0.755787,66156.0,66155.0,0.372]
[1721753590950,1.065102,66156.0,66155.0,0.373]
[1721753591205,1.065102,66156.0,66155.0,0.372]
[1721753591382,1.065102,66156.0,66155.0,0.373]
[1721753591584,1.71343691,66156.0,66155.0,0.002]
[1721753591718,1.75341206,66156.0,66155.0,0.002]
[1721753591914,2.05572706,66156.0,66155.0,0.003]
[1721753592136,1.76341206,66156.0,66155.0,0.013]
[1721753592557,1.74341206,66156.0,66155.0,0.011]
[1721753592758,2.42341206,66156.0,66155.0,0.011]
[1721753592960,2.58231206,66156.0,66155.0,0.011]
[1721753593160,2.57331206,66156.0,66155.0,0.01]
[1721753593363,1.360705,66142.0,66141.0,0.000924]
[1721753593567,1.75262491,66142.0,66141.0,0.000924]
[1721753593889,1.79967334,66142.0,66141.0,0.000924]
[1721753594092,2.51628291,66142.0,66141.0,0.000924]
[1721753594226,2.56336871,66142.0,66141.0,0.000924]
[1721753594636,3.28336871,66142.0,66141.0,0.000924]
[1721753595048,3.29236871,66142.0,66141.0,0.000924]
[1721753595445,3.29236871,66142.0,66132.0,0.00945]
[1721753595446,1.50619,66133.0,66132.0,0.00945]
[1721753595692,2.21452991,66133.0,66132.0,0.00945]
[1721753595899,2.51694991,66133.0,66132.0,0.00945]
[1721753596243,1.519812,66132.0,66131.0,1e-06]
[1721753596467,3.21247133,66132.0,66131.0,1e-06]
[1721753596879,1.822386,66126.0,66125.0,0.28836226]
[1721753597088,2.20670591,66126.0,66125.0,0.28836226]
[1721753597326,2.14540591,66126.0,66125.0,0.18916226]
[1721753597596,1.596622,66112.0,66100.0,0.355]
[1721753597729,1.84364191,66112.0,66100.0,0.355]
[1721753598343,0.85629,66112.0,66105.0,0.0643]
[1721753598691,0.553774,66112.0,66105.0,0.0643]
[1721753598855,0.85629,66112.0,66100.0,0.355]
[1721753599197,0.87029,66112.0,66111.0,0.003]
[1721753599398,0.265258,66112.0,66111.0,0.002]
[1721753599624,0.0818,66123.0,66111.0,0.002]
[1721753599823,0.014,66112.0,66111.0,0.003]
[1721753599972,0.014,66112.0,66111.0,0.96630531]
[1721753600151,0.014,66112.0,66111.0,0.92932191]
[1721753600354,0.00933385,66138.0,66114.0,0.1455]
[1721753600551,0.002794,66145.0,66135.0,0.0645]
[1721753601011,0.002794,66148.0,66135.0,0.0645]
[1721753601218,0.002794,66151.0,66137.0,0.3024]
[1721753601387,0.002794,66154.0,66138.0,0.2007119]
[1721753601709,0.44301,66159.0,66139.0,0.023]
[1721753601710,0.151169,66151.0,66139.0,0.023]
[1721753601934,0.002794,66150.0,66149.0,0.151173]
[1721753602130,0.013,66145.0,66144.0,0.453555]
[1721753602267,0.002794,66164.0,66144.0,0.30991991]
[1721753602610,0.002794,66165.0,66145.0,0.21625041]
[1721753602810,0.014,66154.0,66153.0,0.453493]
[1721753603113,0.316324,66154.0,66153.0,0.0652]
[1721753603248,0.151177,66148.0,66147.0,0.0652]
[1721753603447,0.014,66154.0,66147.0,0.0652]
[1721753603652,0.151167,66152.0,66147.0,0.0652]
[1721753603881,0.014,66154.0,66153.0,0.151164]
[1721753604085,0.014,66154.0,66147.0,0.0652]
[1721753604292,0.02,66154.0,66148.0,0.174175]
[1721753604486,0.02,66154.0,66148.0,0.023]
[1721753604487,0.151165,66153.0,66148.0,0.023]
[1721753604751,0.002794,66152.0,66148.0,0.023]
[1721753605021,0.45352,66149.0,66148.0,0.023]
[1721753605232,0.006,66154.0,66147.0,0.0652]
[1721753605233,0.453528,66148.0,66147.0,0.0652]
[1721753605378,0.07948942,66154.0,66138.0,0.0652]
[1721753605581,0.302356,66148.0,66138.0,0.0652]
[1721753605789,0.302353,66148.0,66138.0,0.216397]
[1721753605969,0.151187,66143.0,66138.0,0.216397]
[1721753606172,0.15119,66142.0,66138.0,0.216397]
[1721753606374,0.302372,66144.0,66138.0,0.216398]
[1721753606574,0.302359,66147.0,66139.0,0.023]
[1721753606754,0.302359,66147.0,66138.0,0.367597]
[1721753606755,0.07348942,66146.0,66138.0,0.0652]
[1721753606956,0.453605,66137.0,66136.0,0.0613]
[1721753607342,0.453603,66137.0,66136.0,0.0613]
[1721753608158,0.756005,66137.0,66136.0,0.0613]
[1721753608671,0.453637,66132.0,66130.0,0.0654]
[1721753608878,0.453645,66131.0,66130.0,0.0654]
[1721753609051,0.756075,66131.0,66130.0,0.0654]
[1721753609378,0.453678,66126.0,66125.0,0.372924]
[1721753609579,0.0784,66139.0,66125.0,0.000924]
[1721753609580,0.151222,66128.0,66125.0,0.000924]
[1721753609762,0.002794,66127.0,66125.0,0.000924]
[1721753610203,0.151224,66127.0,66125.0,0.000924]
[1721753610527,0.002794,66126.0,66125.0,0.000924]
[1721753610680,0.305246,66126.0,66125.0,0.000924]
[1721753610883,0.75613,66126.0,66125.0,0.000924]
[1721753611042,1.058582,66126.0,66125.0,0.000924]
[1721753611244,0.75613,66126.0,66125.0,0.000924]
[1721753611584,1.058582,66126.0,66125.0,0.000924]
[1721753612244,1.536234,66126.0,66125.0,0.000924]
[1721753612448,2.08092126,66126.0,66125.0,0.000924]
[1721753612671,2.23982126,66126.0,66125.0,0.000924]
[1721753612881,0.302608,66092.0,66084.0,0.060585]
[1721753613091,0.83000942,66092.0,66074.0,0.073872]
[1721753613291,1.09936456,66092.0,66074.0,0.073872]
[1721753613551,0.75652,66092.0,66074.0,0.073872]
[1721753613788,0.302479,66121.0,66103.0,0.0645]
[1721753613987,0.1589,66134.0,66103.0,0.0645]
[1721753613988,0.00906472,66130.0,66104.0,0.46383291]
[1721753614261,0.002794,66129.0,66121.0,0.302473]
[1721753614462,0.0752,66141.0,66108.0,0.302535]
[1721753614662,0.0752,66141.0,66106.0,0.21151991]
[1721753614663,0.07348942,66131.0,66106.0,0.21151991]
[1721753614842,0.07348942,66131.0,66106.0,0.0645]
[1721753614843,0.002794,66129.0,66106.0,0.0645]
[1721753615039,0.04666842,66153.0,66107.0,0.023]
[1721753615239,0.302425,66132.0,66108.0,0.0613]
[1721753615408,0.302403,66137.0,66117.0,0.0624]
[1721753615603,0.1021,66149.0,66123.0,0.076]
[1721753615799,0.30871391,66148.0,66123.0,0.076]
[1721753616000,0.07348942,66143.0,66123.0,0.076]
[1721753616209,0.002794,66141.0,66117.0,0.0624]
[1721753616410,0.1021,66149.0,66117.0,0.0574]
[1721753616411,0.302455,66126.0,66117.0,0.0574]
[1721753616627,0.014,66137.0,66117.0,0.0574]
[1721753616830,0.014,66137.0,66118.0,0.14701991]
[1721753617036,0.302406,66137.0,66119.0,0.023]
[1721753617240,0.302438,66130.0,66120.0,0.151239]
[1721753617446,0.014,66141.0,66119.0,0.17001991]
[1721753617688,0.151225,66127.0,66120.0,0.151239]
[1721753617816,0.15122,66129.0,66123.0,0.001]
[1721753618033,0.14701991,66140.0,66123.0,0.001]
[1721753618236,0.151231,66124.0,66117.0,0.0574]
[1721753618474,0.302455,66126.0,66120.0,0.001]
[1721753618678,0.453712,66121.0,66120.0,0.001]
[1721753618882,0.15124,66120.0,66117.0,0.0574]
[1721753619112,0.453733,66118.0,66117.0,0.0574]
[1721753619469,0.302466,66123.0,66117.0,0.0574]
[1721753619680,0.151244,66118.0,66117.0,0.0574]
[1721753619876,0.453733,66118.0,66117.0,0.0574]
[1721753620122,0.151244,66118.0,66117.0,0.0574]
[1721753620328,0.15124,66120.0,66117.0,0.0574]
[1721753620506,0.151244,66118.0,66117.0,0.0574]
[1721753620984,0.30243,66131.0,66117.0,0.0574]
[1721753621176,0.1,66130.0,66117.0,0.0574]
[1721753621293,0.302452,66127.0,66118.0,0.151243]
[1721753621498,0.0911,66137.0,66118.0,0.151243]
[1721753621692,0.302427,66132.0,66119.0,0.14701991]
[1721753621924,0.0821,66145.0,66120.0,0.02054199]
[1721753622136,0.07348942,66215.0,66122.0,0.1401]
[1721753622137,0.002794,66144.0,66122.0,0.1401]
[1721753622345,0.151179,66147.0,66141.0,0.0641]
[1721753622740,0.151189,66142.0,66141.0,0.0641]
[1721753622931,0.302371,66144.0,66124.0,0.076]
[1721753623133,0.151202,66137.0,66130.0,0.151215]
[1721753623305,0.002794,66152.0,66125.0,0.32124691]
[1721753623514,0.002794,66150.0,66128.0,0.302441]
[1721753623674,0.24701991,66150.0,66132.0,0.302423]
[1721753623879,0.1,66150.0,66135.0,0.302409]
[1721753624090,0.014,66144.0,66135.0,0.08182529]
[1721753624345,0.151199,66138.0,66134.0,0.0664]
[1721753624541,0.453616,66135.0,66134.0,0.0664]
[1721753624751,0.302344,66150.0,66134.0,0.0664]
[1721753624945,0.453616,66135.0,66134.0,0.0664]
[1721753625383,0.151216,66131.0,66124.0,0.15123]
[1721753625524,0.151226,66127.0,66119.0,0.0664]
[1721753625726,0.453616,66135.0,66134.0,0.001]
[1721753625927,0.151232,66124.0,66119.0,0.0664]
[1721753626128,0.002794,66141.0,66119.0,0.0664]
[1721753626356,0.30248,66120.0,66119.0,0.0664]
[1721753626557,0.7562,66120.0,66119.0,0.0664]
[1721753626759,0.151253,66114.0,66113.0,0.1434]
[1721753626993,0.302449,66127.0,66113.0,0.1434]
[1721753627186,0.151247,66117.0,66113.0,0.1434]
[1721753627322,0.302466,66123.0,66113.0,0.1434]
[1721753627526,0.151246,66118.0,66113.0,0.1434]
[1721753627917,0.1,66134.0,66113.0,0.1434]
[1721753628060,0.30245,66127.0,66113.0,0.29036265]
[1721753628265,0.151251,66116.0,66113.0,0.1434]
[1721753628683,0.302456,66126.0,66114.0,0.302506]
[1721753628896,0.302466,66123.0,66113.0,0.1434]
[1721753629118,0.151244,66119.0,66113.0,0.29136265]
[1721753629353,0.14701991,66133.0,66113.0,0.1434]
[1721753629567,0.151251,66115.0,66113.0,0.1434]
[1721753629726,0.151253,66114.0,66113.0,0.1434]
[1721753629890,0.151252,66115.0,66113.0,0.1434]
[1721753630097,0.45376,66114.0,66113.0,0.1434]
[1721753630305,0.45376,66114.0,66113.0,0.0641]
[1721753630513,0.151253,66114.0,66113.0,0.0641]
[1721753631357,0.45376,66114.0,66113.0,0.0651]
[1721753631561,0.151253,66114.0,66113.0,0.0641]
[1721753631887,0.151247,66117.0,66113.0,0.0641]
[1721753632088,0.151245,66118.0,66113.0,0.0641]
[1721753632294,0.45376,66114.0,66113.0,0.0641]
[1721753632593,0.15001991,66114.0,66107.0,0.0623]
[1721753632830,0.151281,66102.0,66100.0,0.0623]
[1721753633003,0.453843,66102.0,66100.0,0.0623]
[1721753633308,0.45385,66101.0,66100.0,0.0623]
[1721753633507,1.058984,66101.0,66100.0,0.0623]
[1721753633706,0.453904,66093.0,66092.0,0.8425]
[1721753633908,0.032,66110.0,66092.0,0.8425]
[1721753634122,0.14701991,66109.0,66092.0,0.89358857]
[1721753634360,0.14701991,66109.0,66091.0,0.0825]
[1721753634361,0.453898,66094.0,66093.0,0.0623]
[1721753634568,0.453912,66092.0,66091.0,0.002]
[1721753634766,1.20614791,66092.0,66091.0,0.002]
[1721753634993,1.50875591,66092.0,66091.0,0.002]
[1721753635458,1.64075591,66092.0,66091.0,0.002]
[1721753635862,2.18226391,66092.0,66091.0,0.002]
[1721753636013,1.88665591,66092.0,66091.0,0.002]
[1721753636379,1.91036505,66092.0,66091.0,0.002]
[1721753637047,1.41685705,66092.0,66091.0,0.002]
[1721753637709,1.40985705,66092.0,66091.0,0.002]
[1721753638111,1.42385705,66092.0,66091.0,0.002]
[1721753638734,1.40985705,66092.0,66091.0,0.003]
[1721753639137,1.42385705,66092.0,66091.0,0.003]
[1721753639341,1.88536505,66092.0,66091.0,0.004]
[1721753640223,1.88536505,66092.0,66088.0,0.009361]
[1721753640224,0.52362905,66092.0,66088.0,0.009361]
[1721753640365,0.389636,66078.0,66074.0,0.009372]
[1721753640571,1.08309991,66078.0,66074.0,0.009372]
[1721753640769,1.84734391,66078.0,66074.0,0.009372]
[1721753641311,2.17801591,66078.0,66074.0,0.009372]
[1721753641506,2.17801591,66078.0,66069.0,0.00120638]
[1721753641507,0.2366,66074.0,66069.0,0.00120638]
[1721753641720,0.310279,66059.0,66051.0,0.002]
[1721753641960,1.30667591,66059.0,66051.0,0.002]
[1721753642167,0.554138,66059.0,66052.0,0.0757]
[1721753642313,0.0811,66074.0,66052.0,0.0757]
[1721753642517,0.454138,66059.0,66052.0,0.0757]
[1721753642718,0.1,66070.0,66058.0,0.004372]
[1721753642878,0.002794,66069.0,66058.0,0.004372]
[1721753643100,0.05272531,66091.0,66069.0,0.0615]
[1721753643293,0.00905342,66102.0,66069.0,0.0615]
[1721753643542,0.014,66078.0,66077.0,0.454015]
[1721753643744,0.014,66078.0,66069.0,0.0615]
[1721753643917,0.302623,66089.0,66070.0,0.023]
[1721753644130,0.008,66092.0,66071.0,0.16303991]
[1721753644486,0.014,66091.0,66072.0,0.023]
[1721753644618,0.014,66091.0,66073.0,0.14701991]
[1721753644989,0.22050933,66090.0,66074.0,0.04187292]
[1721753645210,0.014,66089.0,66075.0,0.14701991]
[1721753645410,0.014,66089.0,66075.0,0.44970491]
[1721753645586,0.014,66089.0,66088.0,0.151313]
[1721753645793,0.014,66089.0,66085.0,0.0757]
[1721753646025,0.014,66089.0,66088.0,0.818065]
[1721753646450,0.014,66089.0,66077.0,0.0615]
[1721753646655,0.454008,66078.0,66077.0,0.0615]
[1721753646804,0.151336,66078.0,66077.0,0.0615]
[1721753646982,0.014,66089.0,66077.0,0.0615]
[1721753647171,0.004,66089.0,66081.0,0.151328]
[1721753647370,0.004,66089.0,66082.0,0.14701991]
[1721753647572,0.151336,66078.0,66077.0,0.0615]
[1721753647801,0.1,66086.0,66077.0,0.0625]
[1721753648017,0.1,66088.0,66077.0,0.20851991]
[1721753648405,0.1,66098.0,66084.0,0.302644]
[1721753648406,0.014,66089.0,66084.0,0.302644]
[1721753648604,0.014,66089.0,66088.0,0.151313]
[1721753648809,0.1,66098.0,66088.0,0.453939]
[1721753649013,0.083,66116.0,66095.0,0.0663]
[1721753649185,0.14701991,66115.0,66095.0,0.0663]
[1721753649400,0.0769,66131.0,66117.0,0.0663]
[1721753649605,0.302399,66138.0,66118.0,0.0772]
[1721753649751,0.16364875,66135.0,66118.0,0.0772]
[1721753649932,0.14785991,66135.0,66125.0,0.151227]
[1721753650128,0.14785991,66135.0,66124.0,0.302459]
[1721753650129,0.00084,66135.0,66124.0,0.302459]
[1721753650371,0.00084,66135.0,66118.0,0.0772]
[1721753650582,0.302417,66134.0,66119.0,0.16136991]
[1721753650795,0.01484,66135.0,66119.0,0.14701991]
[1721753651239,0.151213,66132.0,66119.0,0.14701991]
[1721753651604,0.151214,66132.0,66124.0,0.001]
[1721753651775,0.15121,66133.0,66128.0,0.151221]
[1721753651912,0.02884,66135.0,66134.0,0.151208]
[1721753652112,0.01484,66135.0,66134.0,0.519924]
[1721753652324,0.468456,66135.0,66134.0,0.10929123]
[1721753652524,0.01484,66135.0,66134.0,0.0663]
[1721753652771,0.454456,66135.0,66134.0,0.0663]
[1721753653005,0.00684,66135.0,66134.0,0.217508]
[1721753653129,0.158045,66135.0,66134.0,0.0663]
[1721753653331,0.00684,66135.0,66134.0,0.0663]
[1721753653579,0.01384,66135.0,66134.0,0.0673]
[1721753653912,0.00084,66135.0,66134.0,0.519924]
[1721753654031,0.00084,66135.0,66134.0,0.71893631]
[1721753654393,0.163045,66135.0,66134.0,0.0663]
[1721753654566,0.01184,66135.0,66134.0,0.0663]
[1721753654891,0.01184,66135.0,66134.0,0.217508]
[1721753655102,0.152045,66135.0,66134.0,0.0663]
[1721753655342,0.454456,66135.0,66134.0,0.0663]
[1721753655539,0.00084,66135.0,66134.0,0.0663]
[1721753655776,0.00084,66135.0,66134.0,0.217508]
[1721753655984,0.159045,66135.0,66134.0,0.0663]
[1721753656183,0.763867,66135.0,66134.0,0.0663]
[1721753656315,0.159045,66135.0,66134.0,0.0663]
[1721753656493,0.165045,66135.0,66134.0,0.0673]
[1721753656695,0.00784,66135.0,66134.0,0.0663]
[1721753656896,0.00784,66135.0,66134.0,0.2392594]
[1721753657257,0.02384,66135.0,66134.0,0.0663]
[1721753657663,0.02384,66135.0,66124.0,0.151229]
[1721753657664,0.00584,66135.0,66124.0,0.151229]
[1721753658022,0.07348942,66126.0,66119.0,0.061]
[1721753658199,0.07348942,66126.0,66107.0,0.0658]
[1721753658200,0.14701991,66125.0,66107.0,0.0658]
[1721753658397,0.07348942,66119.0,66107.0,0.0658]
[1721753658597,0.07348942,66112.0,66102.0,0.0658]
[1721753658799,0.453837,66103.0,66102.0,0.0658]
[1721753659107,0.14701991,66111.0,66095.0,0.0625]
[1721753659108,0.30254,66107.0,66095.0,0.0625]
[1721753659299,0.151295,66096.0,66095.0,0.0625]
[1721753659512,0.453885,66096.0,66095.0,0.0625]
[1721753659715,0.453885,66096.0,66074.0,0.0625]
[1721753659716,0.454029,66075.0,66074.0,0.0625]
[1721753659840,0.0765,66095.0,66068.0,0.0789]
[1721753659841,0.151356,66069.0,66068.0,0.0789]
[1721753660049,0.07348942,66083.0,66058.0,0.083272]
[1721753660050,0.151379,66059.0,66058.0,0.083272]
[1721753660244,0.151379,66059.0,66058.0,0.004372]
[1721753660528,0.1,66076.0,66058.0,0.004372]
[1721753660701,0.151357,66069.0,66059.0,0.002794]
[1721753660907,0.1,66068.0,66059.0,0.040037]
[1721753661111,0.302687,66075.0,66059.0,0.002794]
[1721753661286,0.151352,66071.0,66059.0,0.002794]
[1721753661505,0.151379,66059.0,66058.0,0.004372]
[1721753661706,0.14701991,66070.0,66058.0,0.004372]
[1721753661911,0.1,66069.0,66058.0,0.0350871]
[1721753662111,0.1,66069.0,66063.0,0.0604]
[1721753662418,0.0826,66083.0,66066.0,0.151362]
[1721753662616,0.1,66073.0,66063.0,0.0604]
[1721753662952,0.01,66069.0,66065.0,0.002794]
[1721753663263,0.302718,66068.0,66059.0,0.001]
[1721753663379,0.454138,66059.0,66058.0,0.004372]
[1721753663582,0.151379,66059.0,66058.0,0.004372]
[1721753663778,0.302703,66072.0,66059.0,0.151379]
[1721753664081,0.151357,66069.0,66062.0,0.002794]
[1721753664305,0.1,66071.0,66066.0,0.001]
[1721753664306,0.151361,66067.0,66066.0,0.001]
[1721753664512,0.007,66069.0,66058.0,0.004372]
[1721753664970,0.151377,66060.0,66059.0,0.002794]
[1721753665146,0.151379,66059.0,66058.0,0.004372]
[1721753665347,0.454138,66059.0,66058.0,0.004372]
[1721753665489,1.159656,66059.0,66058.0,0.004372]
[1721753665893,1.159656,66059.0,66058.0,0.006372]
[1721753666192,2.02409391,66059.0,66058.0,0.006372]
[1721753666366,1.218668,66052.0,66051.0,0.002]
[1721753666593,1.76847891,66052.0,66051.0,0.002]
[1721753666705,2.07126991,66052.0,66051.0,0.002]
[1721753666913,0.757105,66041.0,66040.0,0.00018167]
[1721753667175,1.30696691,66041.0,66040.0,0.00018167]
[1721753667390,0.48731991,66041.0,66024.0,0.00852]
[1721753667587,1.74234233,66034.0,66033.0,0.00468681]
[1721753667787,1.46597891,66034.0,66033.0,0.00468681]
[1721753668014,1.30707891,66034.0,66033.0,0.00468681]
[1721753668194,1.46597891,66034.0,66033.0,0.00468681]
[1721753669024,0.39845691,66034.0,66033.0,0.00468681]
[1721753669219,0.24701991,66034.0,66033.0,0.00468681]
[1721753669454,0.39845691,66034.0,66033.0,0.00468681]
[1721753669580,0.24701991,66034.0,66033.0,0.00468681]
[1721753670185,0.42645691,66034.0,66033.0,0.00468681]
[1721753670387,0.26101991,66034.0,66033.0,0.00468681]
[1721753670634,0.70133091,66034.0,66033.0,0.00468681]
[1721753670811,0.26101991,66034.0,66031.0,0.0368705]
[1721753671013,0.1,66033.0,66031.0,0.0368705]
[1721753671548,0.01578884,66041.0,66031.0,0.0368705]
[1721753671749,0.01578884,66041.0,66032.0,0.002794]
[1721753671915,0.03023,66088.0,66032.0,0.01275105]
[1721753671916,0.014,66034.0,66032.0,0.01275105]
[1721753672121,0.014,66034.0,66033.0,0.000924]
[1721753672679,0.014,66041.0,66033.0,0.000924]
[1721753672942,0.014,66041.0,66040.0,0.151423]
[1721753673178,0.014,66041.0,66040.0,0.757115]
[1721753673378,0.01578884,66058.0,66033.0,0.000924]
[1721753673581,0.14701991,66057.0,66042.0,0.302834]
[1721753673789,0.01578884,66058.0,66035.0,0.302868]
[1721753674039,0.16280875,66058.0,66051.0,0.151396]
[1721753674226,0.16280875,66058.0,66037.0,0.30286]
[1721753674484,0.454311,66034.0,66033.0,0.00097882]
[1721753674697,0.15098942,66039.0,66033.0,0.00097882]
[1721753674969,0.002794,66038.0,66033.0,0.00097882]
[1721753675166,0.757185,66034.0,66033.0,0.00097882]
[1721753675316,0.0775,66039.0,66033.0,0.00097882]
[1721753675530,0.1,66034.0,66033.0,0.00097882]
[1721753675734,0.24701991,66034.0,66033.0,0.00097882]
[1721753675907,0.81023091,66034.0,66033.0,0.00097882]
[1721753676108,0.96913091,66034.0,66033.0,0.00097882]
[1721753676365,0.1589,66027.0,66008.0,0.03160976]
[1721753676540,0.24981391,66026.0,66009.0,0.302987]